[Event "Early-Titled-Tuesday-Blitz-January-30-2024"]
[Site "Chess.com"]
[Date "2024.01.30"]
[Round "9"]
[White "alekroth65"]
[Black "toninhojit"]
[Result "0-1"]
[WhiteElo "2362"]
[BlackElo "2558"]
[TimeControl "180+1"]
[EndTime "9:49:20 PST"]
[Termination "toninhojit won on time"]

1. d4 {[%clk 0:03:00.9]} 1... Nf6 {[%clk 0:02:59.2]} 2. c4 {[%clk 0:03:01]} 2...
c5 {[%clk 0:02:59.7]} 3. d5 {[%clk 0:03:00.1]} 3... e6 {[%clk 0:03:00.4]} 4. Nc3
{[%clk 0:02:58.5]} 4... exd5 {[%clk 0:03:01.1]} 5. cxd5 {[%clk 0:02:58.2]} 5...
d6 {[%clk 0:03:01.7]} 6. Nf3 {[%clk 0:02:56.9]} 6... g6 {[%clk 0:03:01.9]} 7.
Bg5 {[%clk 0:02:55.7]} 7... Bg7 {[%clk 0:03:01.9]} 8. Nd2 {[%clk 0:02:53.7]}
8... Nbd7 {[%clk 0:02:58.8]} 9. e3 {[%clk 0:02:49.6]} 9... O-O {[%clk
0:02:56.5]} 10. Be2 {[%clk 0:02:46.4]} 10... a6 {[%clk 0:02:52.6]} 11. a4 {[%clk
0:02:43.9]} 11... Ne5 {[%clk 0:02:49.8]} 12. O-O {[%clk 0:02:42.3]} 12... h6
{[%clk 0:02:49.9]} 13. Bf4 {[%clk 0:02:41.5]} 13... Ne8 {[%clk 0:02:41.4]} 14.
Bxe5 {[%clk 0:02:40.4]} 14... Bxe5 {[%clk 0:02:40.2]} 15. Nc4 {[%clk 0:02:37.6]}
15... Bg7 {[%clk 0:02:39.6]} 16. a5 {[%clk 0:02:37]} 16... Rb8 {[%clk
0:02:32.5]} 17. Na4 {[%clk 0:02:35.8]} 17... Bd7 {[%clk 0:02:22]} 18. Nab6
{[%clk 0:02:36.3]} 18... Bb5 {[%clk 0:02:19.8]} 19. Qc2 {[%clk 0:02:28.6]} 19...
Nf6 {[%clk 0:02:07]} 20. Bf3 {[%clk 0:02:23.9]} 20... Nd7 {[%clk 0:01:57.1]} 21.
Nxd7 {[%clk 0:01:56.9]} 21... Qxd7 {[%clk 0:01:55.5]} 22. Nb6 {[%clk 0:01:54.7]}
22... Qe7 {[%clk 0:01:54.2]} 23. Be2 {[%clk 0:01:53.6]} 23... f5 {[%clk
0:01:33.3]} 24. Rab1 {[%clk 0:01:40.1]} 24... Kh7 {[%clk 0:01:32.2]} 25. Bc4
{[%clk 0:01:32.4]} 25... f4 {[%clk 0:01:30.5]} 26. exf4 {[%clk 0:01:22.8]} 26...
Rxf4 {[%clk 0:01:31.4]} 27. b3 {[%clk 0:01:22.2]} 27... Bxc4 {[%clk 0:01:28.3]}
28. bxc4 {[%clk 0:01:18.6]} 28... Bd4 {[%clk 0:01:25.8]} 29. Rbe1 {[%clk
0:01:10.1]} 29... Qf7 {[%clk 0:01:23.8]} 30. Re2 {[%clk 0:00:56.3]} 30... Rf8
{[%clk 0:01:22.6]} 31. g3 {[%clk 0:00:45.9]} 31... Rf3 {[%clk 0:01:12.9]} 32.
Qe4 {[%clk 0:00:43]} 32... Rf5 {[%clk 0:00:34.8]} 33. Kg2 {[%clk 0:00:25.2]}
33... Re5 {[%clk 0:00:32.5]} 34. Qd3 {[%clk 0:00:20.3]} 34... Rfe8 {[%clk
0:00:26.8]} 35. Rxe5 {[%clk 0:00:19.3]} 35... Rxe5 {[%clk 0:00:27.7]} 36. Qf3
{[%clk 0:00:17.5]} 36... Rf5 {[%clk 0:00:27.7]} 37. Qe4 {[%clk 0:00:16.4]} 37...
Rxf2+ {[%clk 0:00:27.3]} 38. Rxf2 {[%clk 0:00:13.4]} 38... Qxf2+ {[%clk
0:00:28.2]} 39. Kh3 {[%clk 0:00:11.8]} 39... Qf1+ {[%clk 0:00:28.6]} 40. Qg2
{[%clk 0:00:07.5]} 40... Qf5+ {[%clk 0:00:28.1]} 41. g4 {[%clk 0:00:06.8]} 41...
Qd3+ {[%clk 0:00:24.5]} 42. Qg3 {[%clk 0:00:06.7]} 42... Qf1+ {[%clk 0:00:24.5]}
43. Qg2 {[%clk 0:00:05.9]} 43... Qf4 {[%clk 0:00:20.2]} 44. Qg3 {[%clk
0:00:06.2]} 44... Be5 {[%clk 0:00:16.4]} 45. Qxf4 {[%clk 0:00:05.9]} 45... Bxf4
{[%clk 0:00:16.9]} 46. Kg2 {[%clk 0:00:06.6]} 46... Bd2 {[%clk 0:00:16.7]} 47.
h3 {[%clk 0:00:07.5]} 47... Bxa5 {[%clk 0:00:16.9]} 48. Nc8 {[%clk 0:00:06.4]}
48... Bc7 {[%clk 0:00:17.7]} 49. Kf3 {[%clk 0:00:05.6]} 49... Kg7 {[%clk
0:00:18.3]} 50. Ke4 {[%clk 0:00:03.4]} 50... Kf7 {[%clk 0:00:18.8]} 51. h4
{[%clk 0:00:02.7]} 51... Ke8 {[%clk 0:00:18.8]} 0-1

[Event "Early-Titled-Tuesday-Blitz-January-30-2024"]
[Site "Chess.com"]
[Date "2024.01.30"]
[Round "9"]
[White "NewYearGirl"]
[Black "tarno17"]
[Result "1-0"]
[WhiteElo "2347"]
[BlackElo "2069"]
[TimeControl "180+1"]
[EndTime "9:49:20 PST"]
[Termination "NewYearGirl won by checkmate"]

1. e4 {[%clk 0:02:58.1]} 1... c5 {[%clk 0:02:59.1]} 2. Nf3 {[%clk 0:02:57.5]}
2... e6 {[%clk 0:02:58.2]} 3. d4 {[%clk 0:02:57.6]} 3... cxd4 {[%clk 0:02:59.1]}
4. Nxd4 {[%clk 0:02:58.5]} 4... a6 {[%clk 0:02:58.6]} 5. c4 {[%clk 0:02:57.4]}
5... Qc7 {[%clk 0:02:58.3]} 6. Nc3 {[%clk 0:02:56.1]} 6... Bb4 {[%clk
0:02:56.5]} 7. Bd3 {[%clk 0:02:55.2]} 7... Nf6 {[%clk 0:02:56.4]} 8. O-O {[%clk
0:02:48.2]} 8... Nc6 {[%clk 0:02:56]} 9. Nxc6 {[%clk 0:02:40.5]} 9... dxc6
{[%clk 0:02:55.4]} 10. Bg5 {[%clk 0:02:34.9]} 10... Bxc3 {[%clk 0:02:17]} 11.
bxc3 {[%clk 0:02:34.2]} 11... Qa5 {[%clk 0:02:16.2]} 12. Qd2 {[%clk 0:02:22.8]}
12... h6 {[%clk 0:02:05.8]} 13. Bxf6 {[%clk 0:02:11.8]} 13... gxf6 {[%clk
0:02:06.7]} 14. Rab1 {[%clk 0:02:11.7]} 14... Qh5 {[%clk 0:01:50.8]} 15. f4
{[%clk 0:02:09]} 15... Rg8 {[%clk 0:01:42.6]} 16. Qe3 {[%clk 0:02:04.6]} 16...
Qg4 {[%clk 0:01:24.6]} 17. Rf2 {[%clk 0:02:03]} 17... h5 {[%clk 0:01:23.3]} 18.
c5 {[%clk 0:01:53.2]} 18... h4 {[%clk 0:01:18.9]} 19. Be2 {[%clk 0:01:48.2]}
19... Qg7 {[%clk 0:01:04.1]} 20. Bf3 {[%clk 0:01:48.1]} 20... h3 {[%clk
0:00:57]} 21. g3 {[%clk 0:01:47.5]} 21... Ke7 {[%clk 0:00:54.4]} 22. Qd4 {[%clk
0:01:41.4]} 22... Rd8 {[%clk 0:00:52.8]} 23. Qe3 {[%clk 0:01:29.9]} 23... a5
{[%clk 0:00:45]} 24. a4 {[%clk 0:01:28.1]} 24... Qg8 {[%clk 0:00:31.6]} 25. e5
{[%clk 0:01:16.2]} 25... fxe5 {[%clk 0:00:30.3]} 26. fxe5 {[%clk 0:01:11.3]}
26... Qg6 {[%clk 0:00:29.4]} 27. Be4 {[%clk 0:01:01.3]} 27... Qg7 {[%clk
0:00:20.5]} 28. Qf4 {[%clk 0:01:00]} 28... Bd7 {[%clk 0:00:13.8]} 29. Rxb7
{[%clk 0:00:53.8]} 29... Rab8 {[%clk 0:00:12.5]} 30. Rfb2 {[%clk 0:00:50.9]}
30... Rxb7 {[%clk 0:00:10.4]} 31. Rxb7 {[%clk 0:00:51.8]} 31... Ke8 {[%clk
0:00:06.1]} 32. Qf6 {[%clk 0:00:32]} 32... Qf8 {[%clk 0:00:05.5]} 33. Qf2 {[%clk
0:00:21.7]} 33... Qg7 {[%clk 0:00:05.6]} 34. Qf4 {[%clk 0:00:11.6]} 34... Qf8
{[%clk 0:00:05.5]} 35. Qe3 {[%clk 0:00:12.1]} 35... Qg7 {[%clk 0:00:04.4]} 36.
Bf3 {[%clk 0:00:12.7]} 36... Qf8 {[%clk 0:00:01.6]} 37. Ra7 {[%clk 0:00:12.5]}
37... Qe7 {[%clk 0:00:01.9]} 38. Rxa5 {[%clk 0:00:12.5]} 38... Bc8 {[%clk
0:00:02.5]} 39. Ra8 {[%clk 0:00:10.6]} 39... Kf8 {[%clk 0:00:03.2]} 40. Bxc6
{[%clk 0:00:09.8]} 40... Rd1+ {[%clk 0:00:02.2]} 41. Kf2 {[%clk 0:00:09.8]}
41... Rd8 {[%clk 0:00:02.1]} 42. Be4 {[%clk 0:00:09.7]} 42... Kg7 {[%clk
0:00:01.8]} 43. c6 {[%clk 0:00:10]} 43... Rd1 {[%clk 0:00:01.1]} 44. Ra7 {[%clk
0:00:10.3]} 44... Qd8 {[%clk 0:00:01.2]} 45. Qf3 {[%clk 0:00:10.7]} 45... Rd2+
{[%clk 0:00:01.7]} 46. Ke1 {[%clk 0:00:10.6]} 46... Ra2 {[%clk 0:00:01.4]} 47.
Qxf7+ {[%clk 0:00:10.7]} 47... Kh8 {[%clk 0:00:01]} 48. Qh7# {[%clk 0:00:11]}
1-0

[Event "Early-Titled-Tuesday-Blitz-January-30-2024"]
[Site "Chess.com"]
[Date "2024.01.30"]
[Round "9"]
[White "Iball95"]
[Black "maximnovik"]
[Result "0-1"]
[WhiteElo "2774"]
[BlackElo "2625"]
[TimeControl "180+1"]
[EndTime "9:49:21 PST"]
[Termination "maximnovik won by checkmate"]

1. e4 {[%clk 0:03:00.9]} 1... c6 {[%clk 0:02:59.6]} 2. d4 {[%clk 0:03:00.7]}
2... d5 {[%clk 0:02:59.3]} 3. exd5 {[%clk 0:03:01.6]} 3... cxd5 {[%clk
0:02:59.2]} 4. c4 {[%clk 0:03:02.4]} 4... Nf6 {[%clk 0:02:59.4]} 5. Nc3 {[%clk
0:03:02.9]} 5... g6 {[%clk 0:03:00]} 6. Nf3 {[%clk 0:03:02.4]} 6... Bg7 {[%clk
0:02:59.9]} 7. cxd5 {[%clk 0:03:03.1]} 7... Nxd5 {[%clk 0:02:59.9]} 8. Bc4
{[%clk 0:03:01.2]} 8... Nxc3 {[%clk 0:03:00]} 9. bxc3 {[%clk 0:03:00.6]} 9...
Qc7 {[%clk 0:02:58]} 10. Qe2 {[%clk 0:02:58.3]} 10... O-O {[%clk 0:02:57.4]} 11.
O-O {[%clk 0:02:58]} 11... Bg4 {[%clk 0:02:57.9]} 12. Bd5 {[%clk 0:02:44.2]}
12... Qxc3 {[%clk 0:02:47.8]} 13. Bxb7 {[%clk 0:02:35.8]} 13... Qxa1 {[%clk
0:02:46.8]} 14. Bxa8 {[%clk 0:02:22.9]} 14... Qc3 {[%clk 0:02:26.9]} 15. h3
{[%clk 0:02:03]} 15... Bxf3 {[%clk 0:02:21.1]} 16. Bxf3 {[%clk 0:02:03.9]} 16...
Nc6 {[%clk 0:02:18.6]} 17. Bxc6 {[%clk 0:01:32.6]} 17... Qxc6 {[%clk 0:02:17.8]}
18. Qxe7 {[%clk 0:01:33.1]} 18... Bxd4 {[%clk 0:02:12.2]} 19. Be3 {[%clk
0:01:23.9]} 19... Re8 {[%clk 0:02:06.5]} 20. Qa3 {[%clk 0:01:20.8]} 20... Bxe3
{[%clk 0:01:57.3]} 21. fxe3 {[%clk 0:01:21.7]} 21... Qb6 {[%clk 0:01:53.6]} 22.
Rf3 {[%clk 0:01:17.6]} 22... Re6 {[%clk 0:01:41.7]} 23. Kh1 {[%clk 0:01:15.4]}
23... h5 {[%clk 0:01:34.5]} 24. Qc3 {[%clk 0:01:12.6]} 24... Rc6 {[%clk
0:01:30.7]} 25. Qe5 {[%clk 0:01:10.3]} 25... Qd8 {[%clk 0:01:02.8]} 26. Qf4
{[%clk 0:01:03.4]} 26... Qd7 {[%clk 0:01:01.8]} 27. Kh2 {[%clk 0:01:02.2]} 27...
Re6 {[%clk 0:01:00.1]} 28. Kh1 {[%clk 0:00:57.7]} 28... Qe7 {[%clk 0:00:59.8]}
29. Kh2 {[%clk 0:00:55.1]} 29... Kg7 {[%clk 0:00:59.3]} 30. Qd4+ {[%clk
0:00:54.5]} 30... Kh7 {[%clk 0:00:58.9]} 31. Qf4 {[%clk 0:00:53.1]} 31... Kg7
{[%clk 0:00:55.9]} 32. Qd4+ {[%clk 0:00:53.5]} 32... f6 {[%clk 0:00:56.3]} 33.
Kg1 {[%clk 0:00:52.1]} 33... Rd6 {[%clk 0:00:52.3]} 34. Qf4 {[%clk 0:00:52]}
34... g5 {[%clk 0:00:48.5]} 35. Qc4 {[%clk 0:00:44.8]} 35... Rd1+ {[%clk
0:00:46]} 36. Kf2 {[%clk 0:00:43.4]} 36... Qd6 {[%clk 0:00:40.7]} 37. Rf5 {[%clk
0:00:25.3]} 37... h4 {[%clk 0:00:40.4]} 38. Qg4 {[%clk 0:00:13.2]} 38... Qd2+
{[%clk 0:00:31.8]} 39. Qe2 {[%clk 0:00:12.6]} 39... Qc1 {[%clk 0:00:31.4]} 40.
Rc5 {[%clk 0:00:05.8]} 40... Qa1 {[%clk 0:00:23.8]} 41. Rc7+ {[%clk 0:00:05.2]}
41... Kh6 {[%clk 0:00:21.4]} 42. Rc6 {[%clk 0:00:05.2]} 42... Rb1 {[%clk
0:00:16.2]} 43. Kf3 {[%clk 0:00:03.8]} 43... Rf1+ {[%clk 0:00:15.2]} 44. Ke4
{[%clk 0:00:01.3]} 44... Qe5+ {[%clk 0:00:12.7]} 45. Kd3 {[%clk 0:00:01.7]}
45... Qd5+ {[%clk 0:00:13.2]} 46. Kc2 {[%clk 0:00:02]} 46... Qxc6+ {[%clk
0:00:13.7]} 47. Kb3 {[%clk 0:00:01.8]} 47... Rc1 {[%clk 0:00:13.3]} 48. Ka3
{[%clk 0:00:02.3]} 48... Qc5+ {[%clk 0:00:13.1]} 49. Ka4 {[%clk 0:00:02]} 49...
Rc4+ {[%clk 0:00:12.2]} 50. Kb3 {[%clk 0:00:02.9]} 50... Qb4# {[%clk 0:00:12.2]}
0-1

[Event "Early-Titled-Tuesday-Blitz-January-30-2024"]
[Site "Chess.com"]
[Date "2024.01.30"]
[Round "9"]
[White "PepeCuenca"]
[Black "KVAIDAN"]
[Result "1/2-1/2"]
[WhiteElo "2663"]
[BlackElo "2396"]
[TimeControl "180+1"]
[EndTime "9:49:23 PST"]
[Termination "Game drawn - insufficient material"]

1. d4 {[%clk 0:02:56.5]} 1... e6 {[%clk 0:02:59.5]} 2. c4 {[%clk 0:02:53.4]}
2... f5 {[%clk 0:02:59.3]} 3. a3 {[%clk 0:02:53]} 3... Nf6 {[%clk 0:02:59.2]} 4.
Nc3 {[%clk 0:02:53.1]} 4... Be7 {[%clk 0:02:57.1]} 5. h4 {[%clk 0:02:50.6]} 5...
O-O {[%clk 0:02:56.9]} 6. Nh3 {[%clk 0:02:50]} 6... b6 {[%clk 0:02:56.2]} 7. Bf4
{[%clk 0:02:48.3]} 7... Bb7 {[%clk 0:02:56.3]} 8. e3 {[%clk 0:02:45.8]} 8... Ne4
{[%clk 0:02:50.1]} 9. h5 {[%clk 0:02:24.3]} 9... h6 {[%clk 0:02:48]} 10. Qc2
{[%clk 0:02:20.2]} 10... Bh4 {[%clk 0:02:47]} 11. O-O-O {[%clk 0:02:10.6]} 11...
d6 {[%clk 0:02:44.6]} 12. Rg1 {[%clk 0:01:54.1]} 12... Nd7 {[%clk 0:02:41.8]}
13. Bd3 {[%clk 0:01:48.4]} 13... Nxc3 {[%clk 0:02:41]} 14. Qxc3 {[%clk
0:01:47.7]} 14... Qe8 {[%clk 0:02:38.4]} 15. Be2 {[%clk 0:01:34.4]} 15... Bf6
{[%clk 0:02:34.8]} 16. Qc2 {[%clk 0:01:29.6]} 16... e5 {[%clk 0:02:30.2]} 17.
Bh2 {[%clk 0:01:22.5]} 17... Be4 {[%clk 0:02:29.1]} 18. Bd3 {[%clk 0:01:19.4]}
18... Bxd3 {[%clk 0:02:24.4]} 19. Qxd3 {[%clk 0:01:20.3]} 19... Qxh5 {[%clk
0:02:23.9]} 20. f3 {[%clk 0:01:06.1]} 20... exd4 {[%clk 0:02:16.2]} 21. exd4
{[%clk 0:01:06.1]} 21... Rae8 {[%clk 0:02:15.2]} 22. Kb1 {[%clk 0:01:03.4]}
22... a5 {[%clk 0:02:00]} 23. Bg3 {[%clk 0:01:01.8]} 23... Qg6 {[%clk
0:01:56.9]} 24. Bf2 {[%clk 0:00:59.1]} 24... Qf7 {[%clk 0:01:50]} 25. Qxf5
{[%clk 0:00:48.3]} 25... Re2 {[%clk 0:01:49.4]} 26. Qd3 {[%clk 0:00:46.3]} 26...
Rfe8 {[%clk 0:01:49.4]} 27. Rge1 {[%clk 0:00:43.2]} 27... Rxe1 {[%clk
0:01:46.8]} 28. Rxe1 {[%clk 0:00:44.1]} 28... Rxe1+ {[%clk 0:01:46.1]} 29. Bxe1
{[%clk 0:00:44.9]} 29... c5 {[%clk 0:01:45.9]} 30. Bc3 {[%clk 0:00:31.9]} 30...
cxd4 {[%clk 0:01:41.3]} 31. Bxd4 {[%clk 0:00:32.8]} 31... Bxd4 {[%clk
0:01:33.1]} 32. Qxd4 {[%clk 0:00:32.4]} 32... Qg6+ {[%clk 0:01:32.5]} 33. Qe4
{[%clk 0:00:25.2]} 33... Qxe4+ {[%clk 0:01:14.4]} 34. fxe4 {[%clk 0:00:26.1]}
34... Ne5 {[%clk 0:01:14.6]} 35. b3 {[%clk 0:00:25.1]} 35... a4 {[%clk
0:01:14.7]} 36. Kc2 {[%clk 0:00:22.5]} 36... Ng4 {[%clk 0:01:12.1]} 37. Nf4
{[%clk 0:00:18.8]} 37... g5 {[%clk 0:01:12.1]} 38. Nd5 {[%clk 0:00:18.7]} 38...
axb3+ {[%clk 0:01:01.8]} 39. Kxb3 {[%clk 0:00:18.9]} 39... Nf2 {[%clk
0:01:02.4]} 40. Nxb6 {[%clk 0:00:10.7]} 40... Nxe4 {[%clk 0:01:02.1]} 41. Kc2
{[%clk 0:00:09.8]} 41... Kf7 {[%clk 0:01:01]} 42. Kd3 {[%clk 0:00:10.3]} 42...
Nc5+ {[%clk 0:01:00.3]} 43. Kd4 {[%clk 0:00:10.9]} 43... Ke6 {[%clk 0:00:59.9]}
44. Nd5 {[%clk 0:00:11.1]} 44... h5 {[%clk 0:00:59.5]} 45. Nc3 {[%clk
0:00:09.9]} 45... Nb3+ {[%clk 0:00:56.1]} 46. Ke3 {[%clk 0:00:07.5]} 46... Na5
{[%clk 0:00:54.8]} 47. Kd4 {[%clk 0:00:06.6]} 47... Nb3+ {[%clk 0:00:54.8]} 48.
Ke3 {[%clk 0:00:07.2]} 48... Ke5 {[%clk 0:00:55.1]} 49. Ne4 {[%clk 0:00:06.8]}
49... g4 {[%clk 0:00:55.2]} 50. g3 {[%clk 0:00:05.6]} 50... Na5 {[%clk
0:00:53.7]} 51. Nd2 {[%clk 0:00:06.1]} 51... Nc6 {[%clk 0:00:48.9]} 52. a4
{[%clk 0:00:06]} 52... Na5 {[%clk 0:00:47.9]} 53. Kd3 {[%clk 0:00:05.8]} 53...
h4 {[%clk 0:00:43.9]} 54. gxh4 {[%clk 0:00:06]} 54... Kf4 {[%clk 0:00:44.3]} 55.
h5 {[%clk 0:00:05.2]} 55... Kg5 {[%clk 0:00:44.2]} 56. Ne4+ {[%clk 0:00:04.5]}
56... Kxh5 {[%clk 0:00:43.4]} 57. Nxd6 {[%clk 0:00:05.2]} 57... g3 {[%clk
0:00:43.8]} 58. Ke2 {[%clk 0:00:05.1]} 58... Kg4 {[%clk 0:00:43.9]} 59. Ne4
{[%clk 0:00:02.9]} 59... Nxc4 {[%clk 0:00:43]} 60. Nxg3 {[%clk 0:00:02.8]} 60...
Kxg3 {[%clk 0:00:42.5]} 61. Kd3 {[%clk 0:00:03]} 61... Nb2+ {[%clk 0:00:42.4]}
62. Kd4 {[%clk 0:00:03.7]} 62... Nxa4 {[%clk 0:00:42.8]} 1/2-1/2

[Event "Early-Titled-Tuesday-Blitz-January-30-2024"]
[Site "Chess.com"]
[Date "2024.01.30"]
[Round "9"]
[White "MagnusCarlsen"]
[Black "Jospem"]
[Result "1-0"]
[WhiteElo "3301"]
[BlackElo "3080"]
[TimeControl "180+1"]
[EndTime "9:49:24 PST"]
[Termination "MagnusCarlsen won by resignation"]

1. e4 {[%clk 0:03:00.9]} 1... c5 {[%clk 0:02:57.7]} 2. Nc3 {[%clk 0:03:01.4]}
2... d6 {[%clk 0:02:55.3]} 3. Nge2 {[%clk 0:03:01.8]} 3... a6 {[%clk 0:02:52.2]}
4. g3 {[%clk 0:03:01.3]} 4... Nc6 {[%clk 0:02:52.8]} 5. Bg2 {[%clk 0:03:00.8]}
5... e6 {[%clk 0:02:53.4]} 6. O-O {[%clk 0:02:59.8]} 6... Bd7 {[%clk 0:02:54]}
7. d4 {[%clk 0:02:57]} 7... cxd4 {[%clk 0:02:54.2]} 8. Nxd4 {[%clk 0:02:57.9]}
8... Nf6 {[%clk 0:02:54.9]} 9. Re1 {[%clk 0:02:52.1]} 9... Be7 {[%clk
0:02:54.9]} 10. Nxc6 {[%clk 0:02:48.4]} 10... Bxc6 {[%clk 0:02:55.8]} 11. e5
{[%clk 0:02:41.7]} 11... dxe5 {[%clk 0:02:56.7]} 12. Bxc6+ {[%clk 0:02:41.2]}
12... bxc6 {[%clk 0:02:52.4]} 13. Rxe5 {[%clk 0:02:38.1]} 13... Nd5 {[%clk
0:02:43.5]} 14. Na4 {[%clk 0:02:37.7]} 14... O-O {[%clk 0:02:43.3]} 15. Re4
{[%clk 0:02:31.9]} 15... Qc7 {[%clk 0:02:22.9]} 16. c4 {[%clk 0:02:30.4]} 16...
Nf6 {[%clk 0:02:23.1]} 17. Bf4 {[%clk 0:02:27.9]} 17... Qb7 {[%clk 0:02:22.8]}
18. Re3 {[%clk 0:02:19.5]} 18... c5 {[%clk 0:02:23.1]} 19. Qf3 {[%clk
0:02:17.5]} 19... Ra7 {[%clk 0:01:57.7]} 20. Rd1 {[%clk 0:02:13.4]} 20... Qxf3
{[%clk 0:01:55.5]} 21. Rxf3 {[%clk 0:02:13.4]} 21... Rb7 {[%clk 0:01:53.6]} 22.
Rb3 {[%clk 0:02:13]} 22... Rxb3 {[%clk 0:01:49.5]} 23. axb3 {[%clk 0:02:13.9]}
23... Rc8 {[%clk 0:01:44.3]} 24. Kf1 {[%clk 0:02:12.6]} 24... Rc6 {[%clk
0:01:35]} 25. Ke2 {[%clk 0:02:12.5]} 25... Kf8 {[%clk 0:01:35.4]} 26. f3 {[%clk
0:02:09.9]} 26... Ke8 {[%clk 0:01:35.2]} 27. Kd3 {[%clk 0:02:06.7]} 27... Nd7
{[%clk 0:01:34.5]} 28. Kc2 {[%clk 0:02:06.9]} 28... h5 {[%clk 0:01:32.7]} 29.
Nc3 {[%clk 0:02:06.2]} 29... f5 {[%clk 0:01:27.8]} 30. h4 {[%clk 0:02:03.7]}
30... Bf6 {[%clk 0:01:26.5]} 31. Be3 {[%clk 0:01:57.5]} 31... Be5 {[%clk
0:01:23.8]} 32. Ne2 {[%clk 0:01:56.8]} 32... g6 {[%clk 0:01:15.6]} 33. Nf4
{[%clk 0:01:53.1]} 33... Bxf4 {[%clk 0:01:13.8]} 34. Bxf4 {[%clk 0:01:53.1]}
34... Ke7 {[%clk 0:01:04.4]} 35. Bg5+ {[%clk 0:01:49.3]} 35... Ke8 {[%clk
0:01:04.8]} 36. Kc3 {[%clk 0:01:48.8]} 36... Rb6 {[%clk 0:00:56.8]} 37. f4
{[%clk 0:01:37.8]} 37... a5 {[%clk 0:00:48.5]} 38. Ra1 {[%clk 0:01:35]} 38...
Ra6 {[%clk 0:00:49]} 39. Kc2 {[%clk 0:01:34.5]} 39... Ra8 {[%clk 0:00:40.5]} 40.
Kb1 {[%clk 0:01:30.1]} 40... Nb8 {[%clk 0:00:30.4]} 41. Bf6 {[%clk 0:01:27.4]}
41... Nc6 {[%clk 0:00:30.4]} 42. Bc3 {[%clk 0:01:28]} 42... Kd7 {[%clk
0:00:24.4]} 43. Kc2 {[%clk 0:01:27]} 43... Kc7 {[%clk 0:00:24.6]} 44. Re1 {[%clk
0:01:26.7]} 44... Re8 {[%clk 0:00:24.3]} 45. Kb1 {[%clk 0:01:26.6]} 45... Nb4
{[%clk 0:00:21.5]} 46. Re2 {[%clk 0:01:17.1]} 46... Kb6 {[%clk 0:00:19.7]} 47.
Kc1 {[%clk 0:01:16.7]} 47... Nc6 {[%clk 0:00:18.4]} 48. Kc2 {[%clk 0:01:13.2]}
48... Nb4+ {[%clk 0:00:17.3]} 49. Kc1 {[%clk 0:01:11.1]} 49... Nc6 {[%clk
0:00:18.2]} 50. Kd1 {[%clk 0:01:10.9]} 50... Kc7 {[%clk 0:00:18.5]} 51. Kc2
{[%clk 0:01:06.6]} 51... Kb6 {[%clk 0:00:18.6]} 52. Kb1 {[%clk 0:00:59.9]} 52...
Nb4 {[%clk 0:00:17.8]} 53. Re1 {[%clk 0:00:59.6]} 53... Nc6 {[%clk 0:00:18]} 54.
Re3 {[%clk 0:00:56.5]} 54... Nb4 {[%clk 0:00:17.8]} 55. Re2 {[%clk 0:00:57.3]}
55... Nc6 {[%clk 0:00:17.1]} 56. Ka2 {[%clk 0:00:56.2]} 56... Re7 {[%clk
0:00:09.6]} 57. Ka3 {[%clk 0:00:56.3]} 57... Re8 {[%clk 0:00:08.4]} 58. Ka4
{[%clk 0:00:56.5]} 58... Re7 {[%clk 0:00:08.8]} 59. Rd2 {[%clk 0:00:56.4]} 59...
Re8 {[%clk 0:00:04.6]} 60. Rd6 {[%clk 0:00:54.4]} 60... Kc7 {[%clk 0:00:05.1]}
61. Be5 {[%clk 0:00:53.5]} 61... Kb6 {[%clk 0:00:05.8]} 62. Rd7 {[%clk
0:00:51.7]} 62... Nxe5 {[%clk 0:00:03.3]} 63. fxe5 {[%clk 0:00:51.8]} 63... f4
{[%clk 0:00:01.7]} 64. gxf4 {[%clk 0:00:49.4]} 64... Rf8 {[%clk 0:00:02.4]} 65.
Rd6+ {[%clk 0:00:49.5]} 65... Kc7 {[%clk 0:00:03.2]} 66. Rxe6 {[%clk 0:00:49.9]}
66... Rxf4 {[%clk 0:00:04]} 67. Rxg6 {[%clk 0:00:50.5]} 67... Rf3 {[%clk
0:00:03.8]} 68. Rh6 {[%clk 0:00:48.1]} 68... Kd7 {[%clk 0:00:04.1]} 69. e6+
{[%clk 0:00:46.8]} 69... Ke7 {[%clk 0:00:04.2]} 70. Rxh5 {[%clk 0:00:47.3]} 1-0